bitfinex/quotes_SOLUSD_20240616
["timestamp","ask_amount","ask_price","bid_price","bid_amount"]
[1718563208094,7.8368,148.19,148.14,5.51]
[1718563208295,5.34,148.19,148.14,5.51]
[1718563210308,5.34,148.18,148.14,0.17]
[1718563210517,5.34,148.18,148.13,20.51]
[1718563213932,7.4915,148.17,148.13,20.0]
[1718563214217,7.4915,148.17,148.07,8.96762512]
[1718563214218,5.34,148.16,148.1,0.17]
[1718563214393,5.34,148.16,148.1,5.85]
[1718563214605,5.34,148.16,148.11,0.17]
[1718563214918,5.34,148.17,148.11,5.85]
[1718563215902,5.34,148.19,148.13,5.34]
[1718563216295,5.34,148.19,148.14,5.34]
[1718563217197,2.4964,148.21,148.15,5.34]
[1718563217388,7.8364,148.21,148.15,5.34]
[1718563217899,5.34,148.2,148.15,5.34]
[1718563218318,7.8366,148.2,148.15,5.34]
[1718563220429,7.4894,148.21,148.14,0.34]
[1718563220602,7.4894,148.21,148.16,5.34]
[1718563220804,2.4965,148.21,148.16,5.34]
[1718563221313,7.4894,148.21,148.16,5.34]
[1718563221924,22.4658,148.23,148.17,5.68]
[1718563222112,13.5675898,148.26,148.19,0.17]
[1718563222113,7.0379898,148.26,148.19,0.17]
[1718563222308,7.4879,148.24,148.2,5.34]
[1718563222623,7.4879,148.24,148.19,5.51]
[1718563222825,14.9757,148.24,148.19,5.51]
[1718563223324,20.3157,148.24,148.19,0.17]
[1718563223526,20.3157,148.24,148.19,0.68]
[1718563223728,12.8279,148.24,148.19,6.02]
[1718563224910,2.4961,148.23,148.19,5.34]
[1718563225120,2.4961,148.23,148.18,18.552]
[1718563226002,30.2999,148.24,148.18,18.552]
[1718563226608,30.2999,148.24,148.19,5.34]
[1718563227116,2.4961,148.23,148.19,5.34]
[1718563228341,7.03558562,148.29,148.19,5.34]
[1718563228342,7.03558562,148.29,148.2,0.17]
[1718563228542,2.4956,148.26,148.21,5.34]
[1718563228845,2.4956,148.26,148.22,5.34]
[1718563229343,2.4956,148.26,148.21,5.34]
[1718563229544,7.8356,148.26,148.21,5.34]
[1718563229751,27.8007,148.26,148.21,5.34]
[1718563229918,12.8274,148.25,148.2,20.34]
[1718563230118,5.34,148.24,148.2,20.34]
[1718563231646,5.34,148.24,148.2,0.34]
[1718563232752,5.34,148.24,148.21,0.17]
[1718563232936,5.34,148.28,148.21,0.68]
[1718563233249,5.34,148.28,148.23,5.34]
[1718563233635,17.8164,148.28,148.22,5.34]
[1718563233837,5.34,148.27,148.22,5.34]
[1718563235049,20.3129,148.27,148.22,5.34]
[1718563235264,5.34,148.25,148.2,5.34]
[1718563235626,5.34,148.27,148.21,6.02]
[1718563237448,7.8354,148.27,148.21,0.68]
[1718563237648,7.8354,148.27,148.21,6.02]
[1718563237853,5.34,148.27,148.21,6.02]
[1718563240038,12.8263,148.27,148.21,6.02]
[1718563244271,7.8354,148.27,148.21,6.02]
[1718563245260,5.34,148.27,148.21,6.02]
[1718563247959,12.8261,148.28,148.22,5.34]
[1718563248747,20.3119,148.28,148.22,5.34]
[1718563250661,12.8261,148.28,148.22,5.34]
[1718563252866,20.312,148.28,148.22,5.34]
[1718563253262,2.4954,148.27,148.22,5.34]
[1718563253766,30.2931,148.28,148.22,5.34]
[1718563254066,7.8354,148.28,148.23,0.17]
[1718563254255,7.8354,148.28,148.23,0.34]
[1718563254845,5.34,148.28,148.23,0.34]
[1718563255662,12.8253,148.29,148.23,5.68]
[1718563255858,20.3106,148.29,148.23,5.68]
[1718563256162,2.4952,148.28,148.23,5.68]
[1718563260237,7.4854,148.29,148.24,0.17]
[1718563260551,7.4854,148.29,148.24,5.85]
[1718563260552,7.8351,148.29,148.24,5.85]
[1718563261070,7.8351,148.29,148.25,0.17]
[1718563261289,7.8351,148.29,148.25,0.51]
[1718563261744,5.34,148.29,148.25,0.51]
[1718563262073,7.8351,148.29,148.25,0.51]
[1718563262672,24.9502,148.3,148.25,0.51]
[1718563262839,5.34,148.3,148.25,0.51]
[1718563263349,7.8349,148.3,148.25,0.51]
[1718563263956,12.8247,148.3,148.25,0.51]
[1718563264365,7.8349,148.3,148.25,0.51]
[1718563268071,2.4949,148.31,148.25,5.85]
[1718563268275,5.34,148.3,148.26,0.62939096]
[1718563268480,7.8349,148.31,148.26,0.62939096]
[1718563268873,2.4949,148.31,148.26,0.62939096]
[1718563269183,7.8349,148.31,148.26,0.62939096]
[1718563271092,12.8244,148.31,148.26,0.62939096]
[1718563271505,2.4948,148.31,148.26,0.62939096]
[1718563271701,16.1015,148.38,148.29,5.34]
[1718563271867,2.4942,148.34,148.3,6.68826404]
[1718563272068,20.3048,148.35,148.3,5.34]
[1718563272393,7.4827,148.34,148.3,5.34]
[1718563272584,7.4827,148.34,148.29,5.34]
[1718563272792,27.787,148.35,148.3,1.34830273]
[1718563273004,30.2812,148.35,148.3,1.34830273]
[1718563273332,12.4701,148.36,148.29,5.68]
[1718563273611,12.4701,148.36,148.27,13.892]
[1718563273612,2.4932,148.4,148.32,5.34]
[1718563273810,7.4808,148.38,148.32,5.34]
[1718563274037,7.4808,148.38,148.31,1.51794652]
[1718563274038,2.4937,148.37,148.33,1.34803292]
[1718563274192,4.9882,148.35,148.3,5.85]
[1718563274510,7.4824,148.35,148.31,20.0]
[1718563275091,2.4942,148.35,148.31,20.0]
[1718563275681,30.28,148.36,148.31,25.34]
[1718563275883,5.34,148.36,148.31,25.34]
[1718563276202,12.8215,148.37,148.32,0.34]
[1718563276710,7.4815,148.37,148.32,5.68]
[1718563277084,6.9815,148.37,148.32,5.68]
[1718563277704,6.9815,148.37,148.33,1.34820719]
[1718563277902,2.4938,148.37,148.33,1.34820719]
[1718563278107,30.2771,148.38,148.33,1.34820719]
[1718563278306,24.9371,148.38,148.33,1.34820719]
[1718563278486,30.2771,148.38,148.33,1.34820719]
[1718563278681,2.4937,148.37,148.33,1.34820719]
[1718563279206,22.4387,148.41,148.34,5.51]
[1718563279408,2.4933,148.4,148.35,6.68789772]
[1718563279610,2.4933,148.4,148.36,6.68780686]
[1718563279909,2.4933,148.4,148.36,5.34]
[1718563280115,7.4798,148.4,148.36,5.34]
[1718563280516,28.62132557,148.46,148.37,0.17]
[1718563280728,16.1015,148.46,148.38,5.34]
[1718563280920,2.4927,148.43,148.38,5.34]
[1718563281621,12.8182,148.43,148.38,5.34]
[1718563281922,20.2965,148.43,148.38,5.34]
[1718563282105,14.9565,148.43,148.38,5.34]
[1718563282307,20.2965,148.43,148.38,5.34]
[1718563283019,12.8182,148.43,148.38,5.34]
[1718563283425,5.34,148.4,148.33,19.2826]
[1718563283723,12.4673,148.39,148.34,25.34]
[1718563283921,2.4935,148.39,148.34,25.34]
[1718563284111,12.8201,148.4,148.34,25.34]
[1718563284493,5.34,148.4,148.34,25.34]
[1718563284690,12.8195,148.41,148.36,0.17]
[1718563285128,12.8195,148.41,148.36,0.51]
[1718563285434,7.8332,148.41,148.36,0.51]
[1718563285627,7.8332,148.41,148.37,0.17]
[1718563287623,7.8333,148.4,148.35,5.51]
[1718563287804,5.34,148.4,148.35,5.51]
[1718563291009,2.4933,148.4,148.34,20.51]
[1718563291321,5.34,148.39,148.35,0.34]
[1718563291540,5.34,148.4,148.36,0.17]
[1718563291729,24.9297,148.42,148.36,0.17]
[1718563291905,5.34,148.4,148.36,0.17]
[1718563295127,2.4932,148.4,148.36,0.17]
[1718563295307,7.8332,148.4,148.36,0.17]
[1718563295833,7.8332,148.4,148.3,7.57230258]
[1718563295834,2.494,148.36,148.29,19.8109]
[1718563296136,5.34,148.35,148.3,5.34]
[1718563296436,5.34,148.35,148.29,19.8109]
[1718563296437,5.34,148.35,148.29,25.1509]
[1718563296626,5.34,148.34,148.29,19.8109]
[1718563297329,5.34,148.33,148.29,19.8109]
[1718563298228,5.34,148.34,148.29,19.8109]
[1718563298431,5.34,148.34,148.3,0.34]
[1718563300629,5.34,148.35,148.3,0.34]
[1718563301724,2.4939,148.36,148.3,0.34]
[1718563301905,5.34,148.35,148.3,0.34]
[1718563304044,5.34,148.35,148.31,0.34]
[1718563304239,17.4554,148.38,148.31,0.34]
[1718563304240,5.34,148.36,148.31,0.34]
[1718563304444,5.34,148.36,148.31,5.68]
[1718563305638,7.8339,148.36,148.31,5.68]
[1718563306914,7.8339,148.36,148.31,0.34]
[1718563307132,12.8218,148.36,148.31,0.34]
[1718563307639,5.34,148.35,148.31,0.34]
[1718563313525,5.34,148.35,148.3,0.34]
[1718563313719,7.8341,148.35,148.3,0.34]
[1718563314140,5.34,148.33,148.26,15.01022512]
[1718563314335,5.34,148.32,148.27,20.0]
[1718563315023,5.34,148.32,148.27,25.34]
[1718563315534,5.34,148.33,148.28,0.68]
[1718563318032,2.4942,148.34,148.28,0.68]
[1718563318232,6.2639,148.37,148.28,6.02]
[1718563318233,4.988,148.36,148.28,6.02]
[1718563318440,5.34,148.35,148.3,5.34]
[1718563319354,5.34,148.35,148.28,0.68]
[1718563319355,5.34,148.35,148.29,5.34]
[1718563319561,5.34,148.35,148.3,0.51]
[1718563320243,27.6239,148.4,148.3,0.51]
[1718563320447,5.34,148.34,148.3,0.51]
[1718563321164,5.34,148.33,148.3,0.51]
[1718563321342,5.34,148.33,148.28,5.51]
[1718563321653,5.34,148.33,148.29,0.34]
[1718563321851,5.34,148.32,148.27,20.0]
[1718563322061,5.34,148.32,148.28,0.34]
[1718563322662,5.34,148.31,148.28,0.34]
[1718563322961,5.34,148.31,148.28,0.17]
[1718563323161,5.34,148.31,148.27,20.0]
[1718563323362,7.8348,148.31,148.26,6.0426]
[1718563323661,5.34,148.29,148.25,13.212]
[1718563324246,24.9479,148.31,148.25,13.212]
[1718563324442,5.34,148.28,148.25,13.212]
[1718563324646,2.4951,148.29,148.22,6.1357]
[1718563324851,5.34,148.27,148.23,20.0]
[1718563325543,5.34,148.29,148.23,25.34]
[1718563325746,5.34,148.29,148.24,0.17]
[1718563325952,5.34,148.29,148.24,0.68]
[1718563327660,5.34,148.28,148.24,0.68]
[1718563328650,5.34,148.29,148.24,0.68]
[1718563330931,5.34,148.28,148.24,0.68]
[1718563336265,5.34,148.28,148.24,1.59004682]
[1718563336567,5.34,148.28,148.24,0.68]
[1718563338259,7.8351,148.29,148.24,0.68]
[1718563338766,5.34,148.28,148.24,0.68]
[1718563341861,7.8353,148.28,148.23,20.0]
[1718563342154,5.34,148.26,148.23,20.0]
[1718563342355,5.34,148.27,148.23,20.0]
[1718563356179,5.34,148.28,148.24,0.17]
[1718563356373,5.34,148.28,148.23,20.0]
[1718563357358,7.03014232,148.32,148.24,0.17]
[1718563357563,5.34,148.3,148.24,0.68]
[1718563357876,5.34,148.31,148.25,5.34]
[1718563358090,5.34,148.31,148.26,0.17]
[1718563359344,5.34,148.3,148.26,0.17]
[1718563360760,5.34,148.29,148.25,0.34]
[1718563361078,5.34,148.29,148.25,0.17]
[1718563365664,5.34,148.29,148.24,0.51]
[1718563366683,5.34,148.28,148.24,0.51]
[1718563367281,5.34,148.27,148.23,20.0]
[1718563368393,5.34,148.26,148.23,20.0]
[1718563376497,5.34,148.25,148.21,13.212]
[1718563377174,5.34,148.24,148.21,13.212]
[1718563377577,5.34,148.25,148.21,13.212]
[1718563379393,5.34,148.26,148.21,13.212]
[1718563382605,5.34,148.24,148.21,13.212]
[1718563382777,5.34,148.23,148.18,25.2165]
[1718563383107,5.34,148.23,148.18,19.8765]
[1718563383284,5.34,148.23,148.18,25.2165]
[1718563383480,5.34,148.24,148.18,25.2165]
[1718563384115,5.34,148.24,148.19,0.68]
[1718563386683,5.34,148.23,148.19,0.68]
[1718563386886,5.34,148.24,148.19,0.68]
[1718563388101,5.34,148.25,148.19,6.02]
[1718563388288,17.4675,148.28,148.19,6.02]
[1718563388483,5.34,148.26,148.2,5.34]
[1718563388710,5.34,148.27,148.21,5.68]
[1718563388909,5.34,148.27,148.21,5.34]
[1718563389411,7.8354,148.27,148.21,5.34]
[1718563389981,12.8263,148.27,148.21,5.34]
[1718563390403,20.3136,148.26,148.2,5.34]
[1718563390716,12.8279,148.24,148.19,0.68]
[1718563391018,7.8359,148.24,148.19,0.68]
[1718563391607,2.4959,148.24,148.19,0.68]
[1718563391815,5.34,148.24,148.19,0.68]
[1718563393386,5.34,148.25,148.19,6.02]
[1718563395618,7.8357,148.25,148.19,6.02]
[1718563397521,5.34,148.25,148.19,6.02]
[1718563397815,7.8358,148.25,148.19,6.02]
[1718563399618,5.34,148.25,148.19,6.02]
[1718563400013,7.8357,148.25,148.19,0.68]
[1718563400319,12.8272,148.25,148.19,0.68]
[1718563400623,5.34,148.24,148.19,0.68]
[1718563403206,5.34,148.2,148.14,19.7725]
[1718563403415,5.34,148.19,148.14,19.7725]
[1718563403714,5.34,148.18,148.14,19.7725]
[1718563404231,5.34,148.18,148.14,13.212]
[1718563404735,5.34,148.17,148.14,13.212]
[1718563407016,5.34,148.18,148.14,13.212]
[1718563408433,5.34,148.17,148.14,13.212]
[1718563415742,5.34,148.17,148.13,0.34]
[1718563425149,9.52396303,148.22,148.14,0.17]
[1718563425354,22.0109,148.23,148.14,0.68]
[1718563425355,18.4357,148.23,148.14,0.68]
[1718563425532,5.34,148.22,148.16,5.34]
[1718563425851,5.34,148.22,148.17,5.34]
[1718563426042,5.34,148.22,148.16,5.34]
[1718563426223,7.8363,148.22,148.16,5.34]
[1718563426420,2.4963,148.22,148.16,5.34]
[1718563426741,23.4281,148.23,148.15,5.34]
[1718563426939,23.4281,148.23,148.16,0.34]
[1718563426940,5.34,148.21,148.16,0.34]
[1718563427736,7.4885,148.23,148.16,0.34]
[1718563428050,7.8359,148.24,148.17,0.68]
[1718563428227,7.8359,148.24,148.18,5.34]
[1718563429348,12.8278,148.24,148.18,5.34]
[1718563429948,20.3157,148.24,148.18,5.34]
[1718563430245,12.8278,148.24,148.18,5.34]
[1718563431954,2.4961,148.23,148.18,5.34]
[1718563433251,7.8361,148.23,148.17,6.02]
[1718563434630,5.34,148.23,148.17,6.02]
[1718563437244,5.34,148.24,148.18,5.34]
[1718563439167,7.8359,148.24,148.18,5.34]
[1718563440159,12.8278,148.24,148.18,5.34]
[1718563440559,7.8359,148.24,148.18,5.34]
[1718563442866,12.8278,148.24,148.18,5.34]
[1718563443557,12.8285,148.23,148.17,0.17]
[1718563443855,2.4963,148.22,148.17,20.0]
[1718563444040,22.4658,148.23,148.17,20.0]
[1718563444041,12.4808,148.23,148.17,20.0]
[1718563444241,24.9614,148.23,148.17,25.34]
[1718563445663,22.4652,148.23,148.17,25.34]
[1718563445841,24.9614,148.23,148.17,25.34]
[1718563446641,2.4962,148.22,148.17,25.34]
[1718563446843,24.9614,148.23,148.17,25.34]
[1718563447568,7.4886,148.23,148.17,25.34]
[1718563447955,14.9769,148.23,148.17,25.34]
[1718563448161,7.4886,148.23,148.17,25.34]
[1718563449192,7.4886,148.23,148.17,5.34]
[1718563449354,7.8368,148.19,148.14,6.3282]
[1718563449863,7.4885,148.23,148.14,6.3282]
[1718563450061,5.34,148.21,148.15,5.34]
[1718563450448,5.34,148.21,148.16,0.17]
[1718563450655,5.34,148.21,148.16,0.34]
[1718563452141,5.34,148.2,148.14,6.3282]
[1718563452344,2.4968,148.19,148.14,11.6682]
[1718563452668,7.8368,148.19,148.14,6.3282]
[1718563453353,5.34,148.19,148.14,6.3282]
[1718563453977,7.8367,148.19,148.14,11.6682]
[1718563454150,5.34,148.19,148.14,11.6682]
[1718563455474,5.34,148.19,148.14,6.3282]
[1718563457653,7.49,148.2,148.14,6.3282]
[1718563457867,5.34,148.19,148.14,6.3282]
[1718563458670,5.34,148.2,148.14,11.6682]
[1718563459071,2.4963,148.22,148.15,0.51]
[1718563459262,5.34,148.21,148.15,5.85]
[1718563459655,7.8363,148.22,148.16,5.34]
[1718563460759,12.8289,148.22,148.16,5.34]
[1718563461059,20.3177,148.22,148.16,5.34]
[1718563461662,2.4964,148.21,148.16,5.34]
[1718563462366,30.303,148.22,148.16,5.34]
[1718563462684,2.4964,148.21,148.16,5.34]
[1718563463085,7.4893,148.21,148.16,5.34]
[1718563464090,14.9786,148.21,148.16,5.34]
[1718563467067,7.4893,148.21,148.16,5.34]
[1718563467271,14.9786,148.21,148.16,5.34]
[1718563467488,7.4893,148.21,148.16,5.34]
[1718563469219,14.9787,148.21,148.16,5.34]
[1718563469386,2.4966,148.2,148.16,5.34]
[1718563469568,7.4898,148.2,148.15,0.51]
[1718563471382,2.4966,148.2,148.15,0.51]
[1718563471577,24.965,148.21,148.15,0.51]
[1718563471783,2.4966,148.2,148.15,0.51]
[1718563477484,7.4898,148.2,148.15,0.51]
[1718563477684,2.4968,148.19,148.15,5.68]
[1718563477884,2.4968,148.19,148.14,11.6682]
[1718563477885,7.4903,148.19,148.14,11.6682]
[1718563478108,7.4903,148.19,148.12,18.552]
[1718563478109,5.34,148.18,148.12,18.552]
[1718563478292,7.837,148.18,148.13,20.0]
[1718563478809,5.34,148.18,148.13,25.34]
[1718563479788,7.8369,148.19,148.13,25.34]
[1718563481510,12.8305,148.19,148.13,25.34]
[1718563481709,5.34,148.18,148.13,25.34]
[1718563483684,6.1207,148.22,148.12,13.722]
[1718563483899,5.34,148.17,148.12,13.212]
[1718563484108,14.98,148.2,148.13,5.51]
[1718563484306,5.34,148.19,148.13,5.51]
[1718563484605,5.34,148.2,148.15,5.34]
[1718563484996,7.8366,148.2,148.15,5.34]
[1718563485412,12.8299,148.2,148.14,5.34]
[1718563486100,5.34,148.19,148.14,5.34]
[1718563486303,12.8304,148.19,148.14,5.34]
[1718563486615,12.8304,148.19,148.13,5.68]
[1718563486791,12.8304,148.19,148.14,0.17]
[1718563487411,7.8368,148.19,148.14,0.17]
[1718563488212,5.34,148.19,148.14,0.17]
[1718563488592,7.8368,148.19,148.14,0.17]
[1718563488794,5.34,148.19,148.14,0.17]
[1718563489620,7.8368,148.19,148.13,5.51]
[1718563489800,12.8303,148.19,148.13,5.34]
[1718563490000,7.8368,148.19,148.13,5.34]
[1718563490212,7.8368,148.19,148.12,13.212]
[1718563490213,5.34,148.18,148.12,18.552]
[1718563490603,7.8369,148.18,148.12,18.552]
[1718563490799,5.34,148.18,148.12,18.552]
[1718563491619,20.321,148.19,148.13,5.34]
[1718563491813,12.8306,148.19,148.13,5.34]
[1718563492535,2.4969,148.18,148.13,5.34]
[1718563492700,7.8369,148.18,148.12,18.552]
[1718563493817,7.8369,148.18,148.12,13.212]
[1718563494004,7.8369,148.18,148.12,18.552]
[1718563494232,12.8308,148.18,148.12,13.212]
[1718563494414,12.8308,148.18,148.12,18.552]
[1718563495437,12.8308,148.18,148.13,5.34]
[1718563495736,7.8369,148.18,148.13,5.34]
[1718563496032,12.8308,148.18,148.12,18.552]
[1718563497207,7.8369,148.18,148.12,18.552]
[1718563498023,5.34,148.18,148.12,18.552]
[1718563498704,5.34,148.18,148.13,5.34]
[1718563500031,7.8369,148.18,148.13,5.34]
[1718563500401,12.8308,148.18,148.12,18.552]
[1718563500596,2.4971,148.17,148.12,18.552]
[1718563501314,30.3097,148.18,148.12,18.552]
[1718563501616,12.8309,148.18,148.12,18.552]
[1718563502517,2.4971,148.17,148.12,18.552]
[1718563502826,30.3097,148.18,148.12,5.34]
[1718563503032,2.4971,148.17,148.12,5.34]
[1718563503526,30.3097,148.18,148.12,5.34]
[1718563505237,7.4913,148.17,148.12,5.34]
[1718563505730,12.8313,148.17,148.11,0.34]
[1718563505900,12.8313,148.17,148.11,25.68]
[1718563506924,20.3227,148.17,148.11,20.34]
[1718563507129,20.3227,148.17,148.11,0.34]
[1718563507311,20.3227,148.17,148.11,5.68]
[1718563507609,12.8313,148.17,148.11,5.68]
[1718563508241,7.8371,148.17,148.11,5.68]
[1718563509335,5.34,148.17,148.11,5.68]
[1718563511933,12.8323,148.16,148.09,20.0]
[1718563512115,5.34,148.14,148.08,0.17]
[1718563512308,5.34,148.14,148.08,5.34]
[1718563513232,5.34,148.14,148.06,6.637]
[1718563513533,5.34,148.14,148.08,5.34]
[1718563514835,5.34,148.14,148.09,5.34]
[1718563515020,7.8374,148.15,148.09,5.34]
[1718563515538,12.8323,148.15,148.09,5.34]
[1718563517529,7.8378,148.13,148.07,0.51]
[1718563517747,12.8334,148.13,148.08,5.34]
[1718563518308,7.8378,148.13,148.07,5.85]
[1718563518529,5.34,148.13,148.07,5.85]
[1718563519524,5.34,148.13,148.08,5.34]
[1718563521124,7.8378,148.13,148.08,5.34]
[1718563521709,7.8378,148.13,148.07,0.34]
[1718563521920,7.8378,148.13,148.07,5.51]
[1718563522128,7.8378,148.13,148.07,5.34]
[1718563522307,12.8335,148.13,148.07,5.34]
[1718563522511,7.8378,148.13,148.07,5.34]
[1718563522711,2.4978,148.13,148.07,5.34]
[1718563522937,5.34,148.13,148.07,5.34]
[1718563523515,12.8329,148.14,148.08,5.34]
[1718563523716,12.8329,148.14,148.09,5.34]
[1718563523923,7.8377,148.14,148.09,5.34]
[1718563524428,7.8377,148.14,148.07,0.17]
[1718563524725,12.8329,148.14,148.09,5.34]
[1718563525237,20.3258,148.14,148.09,5.34]
[1718563525423,2.4978,148.13,148.09,5.34]
[1718563525727,2.4978,148.13,148.08,5.34]
[1718563527713,22.4775,148.15,148.08,5.34]
[1718563527914,20.3251,148.15,148.09,5.34]
[1718563528419,12.8327,148.15,148.09,5.34]
[1718563528845,2.4976,148.14,148.09,5.34]
[1718563531045,7.4928,148.14,148.09,5.34]
[1718563531441,2.4976,148.14,148.09,5.34]
[1718563531644,7.4919,148.16,148.11,5.34]
[1718563532146,2.4974,148.15,148.11,5.34]
[1718563533941,2.4974,148.15,148.1,5.85]
[1718563534762,2.4974,148.15,148.08,5.34]
[1718563534763,7.8377,148.14,148.08,5.34]
[1718563535058,5.34,148.14,148.09,25.34]
[1718563535257,7.8376,148.14,148.09,25.34]
[1718563536247,7.8376,148.14,148.09,20.0]
[1718563536447,7.8376,148.14,148.09,5.34]
[1718563537054,5.34,148.14,148.09,5.34]
[1718563538639,5.34,148.14,148.08,5.68]
[1718563538836,5.34,148.14,148.09,20.0]
[1718563539739,7.8376,148.15,148.09,25.34]
[1718563541956,6.335,148.17,148.1,0.17]
[1718563542130,16.4081,148.18,148.12,5.34]
[1718563542444,21.7481,148.18,148.12,5.34]
[1718563542932,10.3344,148.17,148.11,5.34]
[1718563543256,12.8319,148.16,148.1,5.85]
[1718563543953,7.8373,148.16,148.1,5.85]
[1718563544450,12.8316,148.17,148.11,5.34]
[1718563544758,2.4973,148.16,148.1,0.51]
[1718563544949,7.8373,148.16,148.11,5.34]
[1718563546056,5.34,148.16,148.11,5.34]
[1718563546238,7.8373,148.16,148.11,5.34]
[1718563546545,7.8371,148.17,148.12,5.85]
[1718563546743,7.8371,148.17,148.12,5.68]
[1718563548558,5.34,148.17,148.09,20.0]
[1718563548747,7.8375,148.15,148.1,0.17]
[1718563549066,7.8375,148.15,148.1,0.34]
[1718563549760,7.8375,148.15,148.1,5.68]
[1718563549957,30.315,148.15,148.09,20.0]
[1718563550160,30.315,148.15,148.09,5.34]
[1718563550461,2.4976,148.14,148.1,20.0]
[1718563550832,30.3149,148.15,148.1,20.0]
[1718563551460,12.8325,148.15,148.1,20.0]
[1718563551663,7.8375,148.15,148.1,20.0]
[1718563552439,5.34,148.15,148.1,20.0]
[1718563552664,7.8374,148.15,148.1,20.0]
[1718563552966,5.34,148.15,148.1,20.0]
[1718563553268,5.34,148.15,148.1,25.34]
[1718563557779,6.6572,148.17,148.1,25.34]
[1718563557936,5.34,148.16,148.1,25.34]
[1718563558340,11.9972,148.17,148.11,5.34]
[1718563558560,5.34,148.16,148.1,25.34]
[1718563562768,11.5434,148.21,148.15,5.34]
[1718563562949,11.5434,148.21,148.13,0.17]
[1718563562950,5.34,148.21,148.16,5.68]
[1718563563145,16.2889,148.22,148.16,5.68]
[1718563563347,16.2889,148.22,148.16,0.34]
[1718563563545,2.4959,148.24,148.18,5.34]
[1718563563747,16.2889,148.26,148.19,0.34]
[1718563563943,7.486,148.28,148.21,5.34]
[1718563564249,20.71326815,148.29,148.19,0.51]
[1718563564250,13.6887,148.29,148.22,5.85]
[1718563564451,7.8353,148.28,148.22,5.68]
[1718563564759,5.34,148.27,148.22,5.68]
[1718563564954,12.8264,148.27,148.22,5.34]
[1718563565154,12.8264,148.27,148.21,0.17]
[1718563565358,7.8355,148.27,148.21,5.68]
[1718563565561,12.8264,148.27,148.21,5.68]
[1718563566071,7.8355,148.27,148.21,5.68]
[1718563568269,7.8355,148.27,148.21,0.34]
[1718563568469,5.34,148.26,148.21,5.68]
[1718563571875,5.34,148.26,148.21,0.34]
[1718563572054,5.34,148.26,148.21,5.68]
[1718563573193,23.31051841,148.3,148.21,5.68]